fUSD/lending_fUSD_20240614
["ID","MTS","AMOUNT","RATE_DAILY","PERIOD"]
[329463002,1718380248594,-500.0,0.00024109,3]
[329463004,1718380248605,-500.0,0.00024109,3]
[329463006,1718380248618,-500.0,0.00024109,3]
[329463007,1718380248630,-629.36484932,0.00024109,3]
[329463010,1718380248642,-500.0,0.00024109,3]
[329463012,1718380248667,-500.0,0.00024109,3]
[329463014,1718380248679,-500.0,0.00024109,3]
[329463016,1718380248694,-500.0,0.00024109,3]
[329463018,1718380248710,-559.24,0.00024109,3]
[329463021,1718380248747,-638.39,0.00024109,7]
[329463023,1718380248776,-531.62,0.00024109,3]
[329463026,1718380248789,-469.24467885,0.00024109,3]
[329463028,1718380248800,-500.0,0.00024109,3]
[329463030,1718380248814,-1434.35,0.00024109,3]
[329463032,1718380248829,-500.0,0.00024109,3]
[329463033,1718380248841,-500.0,0.00024109,3]
[329463034,1718380248853,-365.56320958,0.00024109,2]
[329463035,1718380248865,-500.0,0.00024109,3]
[329463036,1718380248877,-168.62887877,0.00024109,2]
[329463037,1718380248942,-500.0,0.00024109,3]
[329463038,1718380248964,-500.0,0.00024109,3]
[329463039,1718380248988,-500.0,0.00024109,3]
[329463040,1718380249000,-580.79,0.00024109,3]
[329463041,1718380249012,-2253.75,0.00024109,3]
[329463042,1718380249032,-654.68,0.00024109,3]
[329463043,1718380249044,-500.0,0.00024109,3]
[329463044,1718380249068,-500.0,0.00024109,3]
[329463045,1718380249091,-820.74,0.00024109,3]
[329463046,1718380249104,-500.0,0.00024109,3]
[329463047,1718380249115,-500.0,0.00024109,3]
[329463048,1718380249135,-553.17,0.00024109,3]
[329463049,1718380249184,-981.09,0.00024109,3]
[329463050,1718380249196,-500.0,0.00024109,3]
[329463051,1718380249227,-500.0,0.00024109,3]
[329463052,1718380249239,-717.82,0.00024109,3]
[329463053,1718380249262,-2471.27,0.00024109,3]
[329463054,1718380249279,-500.0,0.00024109,3]
[329463055,1718380249295,-1770.27,0.00024109,3]
[329463056,1718380249307,-500.0,0.00024109,3]
[329463057,1718380249332,-500.0,0.00024109,3]
[329463058,1718380249362,-500.0,0.00024109,3]
[329463059,1718380249377,-500.0,0.00024109,3]
[329463060,1718380249409,-1176.5,0.00024109,3]
[329463061,1718380249440,-500.0,0.00024109,3]
[329463062,1718380249462,-1926.24,0.00024109,3]
[329463063,1718380249475,-672.6,0.00024109,3]
[329463064,1718380249485,-3186.53,0.00024109,3]
[329463065,1718380249496,-304.03844162,0.00024109,3]
[329463066,1718380249507,-500.0,0.00024109,3]
[329463067,1718380249521,-642.98,0.00024109,3]
[329463068,1718380249536,-379.97624192,0.00024109,3]
[329463069,1718380249547,-5081.9,0.00024109,3]
[329463070,1718380249566,-1653.44,0.00024109,3]
[329463071,1718380249578,-500.0,0.00024109,3]
[329463072,1718380249605,-613.54286838,0.00024109,3]
[329463073,1718380249633,-500.0,0.00024109,3]
[329463074,1718380249676,-500.0,0.00024109,3]
[329463075,1718380249691,-745.6,0.00024109,3]
[329463076,1718380249720,-500.0,0.00024109,3]
[329463077,1718380249758,-500.0,0.00024109,3]
[329463078,1718380249792,-881.83,0.00024109,3]
[329463079,1718380249830,-4192.77,0.00024109,3]
[329463080,1718380249853,-500.0,0.00024109,3]
[329463081,1718380249879,-510.04,0.00024109,3]
[329463082,1718380249911,-694.53,0.00024109,3]
[329463083,1718380249921,-500.0,0.00024109,3]
[329463084,1718380249933,-500.0,0.00024109,3]
[329463085,1718380249944,-858.94,0.00024109,3]
[329463086,1718380249964,-479.97889632,0.00024109,3]
[329463087,1718380249976,-3951.52,0.00024109,3]
[329463088,1718380249989,-552.70908345,0.00024109,3]
[329463089,1718380250010,-500.0,0.00024109,3]
[329463090,1718380250035,-500.0,0.00024109,3]
[329463091,1718380250055,-1271.89,0.00024109,3]
[329463092,1718380250086,-500.0,0.00024109,3]
[329463093,1718380250131,-1851.12,0.00024109,3]
[329463094,1718380250147,-500.0,0.00024109,3]
[329463095,1718380250161,-500.0,0.00024109,3]
[329463096,1718380250172,-500.0,0.00024109,3]
[329463097,1718380250185,-500.0,0.00024109,3]
[329463098,1718380250219,-500.0,0.00024109,3]
[329463099,1718380250243,-6794.63,0.00024109,3]
[329463100,1718380250262,-500.0,0.00024109,3]
[329463101,1718380250302,-500.0,0.00024109,3]
[329463102,1718380250334,-500.0,0.00024109,3]
[329463103,1718380250364,-500.0,0.00024109,3]
[329463104,1718380250381,-500.0,0.00024109,3]
[329463105,1718380250393,-500.0,0.00024109,3]
[329463106,1718380250416,-553.16443163,0.00024109,3]
[329463107,1718380250438,-567.2919659,0.00024109,3]
[329463108,1718380250450,-554.41,0.00024109,3]
[329463109,1718380250475,-500.0,0.00024109,3]
[329463110,1718380250494,-500.0,0.00024109,3]
[329463111,1718380250506,-500.0,0.00024109,3]
[329463112,1718380250523,-1734.61,0.00024109,3]
[329463113,1718380250547,-511.94973662,0.00024109,3]
[329463114,1718380250578,-500.0,0.00024109,3]
[329463115,1718380250600,-1429.38,0.00024109,3]
[329463116,1718380250634,-500.0,0.00024109,3]
[329463117,1718380250661,-3300.26,0.00024109,3]
[329463118,1718380250693,-553.84,0.00024109,3]
[329463119,1718380250727,-500.0,0.00024109,3]
[329463120,1718380250739,-500.0,0.00024109,3]
[329463121,1718380250753,-500.0,0.00024109,3]
[329463122,1718380250765,-908.52,0.00024109,3]
[329463123,1718380250828,-500.0,0.00024109,3]
[329463124,1718380250873,-500.0,0.00024109,3]
[329463125,1718380250890,-572.59913031,0.00024109,3]
[329463126,1718380250918,-500.0,0.00024109,3]
[329463127,1718380250933,-1804.53,0.00024109,3]
[329463128,1718380250957,-648.65,0.00024109,3]
[329463129,1718380250971,-820.37,0.00024109,3]
[329463130,1718380250985,-540.40553836,0.00024109,3]
[329463131,1718380250999,-1274.24,0.00024109,3]
[329463132,1718380251046,-5752.37,0.00024109,3]
[329463133,1718380251067,-711.06,0.00024109,3]
[329463134,1718380251112,-500.0,0.00024109,3]
[329463135,1718380251180,-896.29,0.00024109,3]
[329463136,1718380251197,-500.0,0.00024109,3]
[329463137,1718380251236,-500.0,0.00024109,3]
[329463138,1718380251282,-838.4,0.00024109,3]
[329463139,1718380251333,-576.72,0.00024109,3]
[329463140,1718380251359,-1103.64,0.00024109,3]
[329463141,1718380251373,-500.0,0.00024109,3]
[329463142,1718380251391,-500.0,0.00024109,3]
[329463143,1718380251419,-704.45,0.00024109,3]
[329463144,1718380251437,-634.77156268,0.00024109,3]
[329463145,1718380251526,-613.01,0.00024109,3]
[329463146,1718380251597,-555.07476411,0.00024109,3]
[329463147,1718380251609,-1967.5,0.00024109,3]
[329463148,1718380251635,-694.56,0.00024109,3]
[329463149,1718380251660,-500.0,0.00024109,3]
[329463150,1718380251678,-500.0,0.00024109,3]
[329463151,1718380251698,-500.0,0.00024109,3]
[329463152,1718380251727,-689.48,0.00024109,3]
[329463153,1718380251750,-500.0,0.00024109,3]
[329463154,1718380251762,-915.07,0.00024109,3]
[329463155,1718380251784,-500.0,0.00024109,3]
[329463156,1718380251854,-500.0,0.00024109,3]
[329463157,1718380251874,-500.0,0.00024109,3]
[329463158,1718380251886,-613.14,0.00024109,3]
[329463159,1718380251913,-701.43,0.00024109,3]
[329463160,1718380251935,-500.0,0.00024109,3]
[329463161,1718380251959,-1091.74,0.00024109,3]
[329463162,1718380251972,-500.0,0.00024109,3]
[329463163,1718380251983,-500.0,0.00024109,3]
[329463164,1718380252000,-1527.0,0.00024109,3]
[329463165,1718380252024,-383.56726865,0.00024109,3]
[329463166,1718380252040,-562.02,0.00024109,3]
[329463167,1718380252067,-500.0,0.00024109,3]
[329463168,1718380252081,-500.0,0.00024109,3]
[329463169,1718380252092,-2895.95,0.00024109,3]
[329463170,1718380252102,-500.0,0.00024109,3]
[329463171,1718380252115,-500.0,0.00024109,3]
[329463172,1718380252126,-200.0,0.00024109,3]
[329463173,1718380252158,-844.9,0.00024109,3]
[329463174,1718380252191,-500.0,0.00024109,3]
[329463175,1718380252207,-535.33,0.00024109,3]
[329463176,1718380252224,-500.0,0.00024109,3]
[329463177,1718380252238,-500.0,0.00024109,3]
[329463178,1718380252259,-783.57,0.00024109,3]
[329463179,1718380252298,-1194.07,0.00024109,3]
[329463180,1718380252322,-1548.88,0.00024109,3]
[329463181,1718380252349,-500.0,0.00024109,3]
[329463182,1718380252363,-500.0,0.00024109,3]
[329463183,1718380252378,-500.0,0.00024109,3]
[329463184,1718380252401,-1621.33,0.00024109,3]
[329463185,1718380252414,-535.87143268,0.00024109,3]
[329463186,1718380252427,-500.0,0.00024109,3]
[329463187,1718380252455,-500.0,0.00024109,3]
[329463188,1718380252472,-500.0,0.00024109,3]
[329463189,1718380252491,-1324.34,0.00024109,3]
[329463190,1718380252503,-500.2,0.00024109,3]
[329463191,1718380252524,-3768.55,0.00024109,3]
[329463192,1718380252552,-500.0,0.00024109,3]
[329463193,1718380252569,-500.0,0.00024109,3]
[329463194,1718380252620,-614.75,0.00024109,3]
[329463195,1718380252662,-500.0,0.00024109,3]
[329463196,1718380252685,-607.96,0.00024109,3]
[329463197,1718380252701,-500.0,0.00024109,3]
[329463198,1718380252740,-1233.94,0.00024109,3]
[329463199,1718380252752,-500.0,0.00024109,3]
[329463200,1718380252776,-868.16,0.00024109,3]
[329463201,1718380252790,-500.0,0.00024109,3]
[329463202,1718380252813,-500.0,0.00024109,3]
[329463203,1718380252830,-500.0,0.00024109,3]
[329463204,1718380252841,-440.61437408,0.00024109,3]
[329463205,1718380252874,-500.0,0.00024109,3]
[329463206,1718380252885,-3190.36,0.00024109,3]
[329463207,1718380252898,-500.0,0.00024109,3]
[329463208,1718380252913,-507.09377597,0.00024109,3]
[329463209,1718380252946,-2304.93,0.00024109,3]
[329463210,1718380252975,-500.0,0.00024109,3]
[329463211,1718380252991,-896.94,0.00024109,3]
[329463212,1718380253009,-500.0,0.00024109,3]
[329463213,1718380253031,-500.0,0.00024109,3]
[329463214,1718380253048,-500.0,0.00024109,3]
[329463215,1718380253062,-500.0,0.00024109,3]
[329463216,1718380253079,-500.0,0.00024109,3]
[329463217,1718380253090,-500.0,0.00024109,3]
[329463218,1718380253107,-2623.02,0.00024109,3]
[329463219,1718380253123,-500.0,0.00024109,3]
[329463220,1718380253152,-4596.0,0.00024109,3]
[329463221,1718380253176,-507.21650024,0.00024109,3]
[329463222,1718380253194,-500.0,0.00024109,3]
[329463223,1718380253212,-906.71,0.00024109,3]
[329463224,1718380253240,-500.0,0.00024109,3]
[329463225,1718380253252,-500.0,0.00024109,3]
[329463226,1718380253274,-830.74,0.00024109,3]
[329463227,1718380253290,-500.0,0.00024109,3]
[329463228,1718380253303,-1376.1,0.00024109,3]
[329463229,1718380253324,-500.0,0.00024109,3]
[329463230,1718380253348,-1000.54,0.00024109,3]
[329463231,1718380253379,-500.0,0.00024109,3]
[329463232,1718380253391,-1290.51,0.00024109,3]
[329463233,1718380253405,-500.0,0.00024109,3]
[329463234,1718380253448,-500.0,0.00024109,3]
[329463235,1718380253460,-500.0,0.00024109,3]
[329463236,1718380253473,-5395.39,0.00024109,3]
[329463237,1718380253487,-500.0,0.00024109,3]
[329463238,1718380253503,-500.0,0.00024109,3]
[329463239,1718380253533,-3051.53,0.00024109,3]
[329463240,1718380253561,-500.0,0.00024109,3]
[329463241,1718380253574,-500.0,0.00024109,2]
[329463242,1718380253597,-500.0,0.00024109,3]
[329463243,1718380253623,-2055.28,0.00024109,3]
[329463244,1718380253634,-1341.71346,0.00024109,2]
[329463245,1718380253648,-500.0,0.00024109,3]
[329463246,1718380253663,-592.96593251,0.00024109,3]
[329463247,1718380253680,-500.0,0.00024109,3]
[329463248,1718380253697,-570.19,0.00024109,3]
[329463249,1718380253710,-3735.09,0.00024109,3]
[329463250,1718380253728,-659.68,0.00024109,3]
[329463251,1718380253742,-829.58,0.00024109,3]
[329463252,1718380253757,-500.0,0.00024109,3]
[329463253,1718380253776,-910.62,0.00024109,3]
[329463254,1718380253788,-3895.55,0.00024109,3]
[329463255,1718380253801,-1760.06,0.00024109,3]
[329463256,1718380253832,-500.0,0.00024109,3]
[329463257,1718380253849,-542.47952555,0.00024109,3]
[329463258,1718380253873,-911.65,0.00024109,3]
[329463259,1718380253901,-500.0,0.00024109,3]
[329463260,1718380253922,-500.0,0.00024109,3]
[329463261,1718380253935,-500.0,0.00024109,3]
[329463262,1718380253947,-500.0,0.00024109,3]
[329463263,1718380253974,-1512.76,0.00024109,3]
[329463264,1718380253986,-2628.57,0.00024109,3]
[329463265,1718380253997,-500.0,0.00024109,3]
[329463266,1718380254036,-899.99,0.00024109,3]
[329463267,1718380254053,-500.0,0.00024109,3]
[329463268,1718380254078,-4116.94,0.00024109,3]
[329463269,1718380254133,-500.0,0.00024109,3]
[329463270,1718380254175,-172.65809,0.00024109,3]
[329463271,1718380254194,-782.89,0.00024109,3]
[329463272,1718380254224,-3165.8,0.00024109,3]
[329463273,1718380254240,-500.0,0.00024109,3]
[329463274,1718380254272,-500.0,0.00024109,3]
[329463275,1718380254289,-548.57,0.00024109,3]
[329463276,1718380254304,-500.0,0.00024109,3]
[329463277,1718380254330,-311.78938627,0.00024109,3]
[329463278,1718380254346,-554.85789484,0.00024109,3]
[329463279,1718380254366,-452.5528399,0.00024109,3]
[329463280,1718380254388,-500.0,0.00024109,3]
[329463281,1718380254420,-500.0,0.00024109,3]
[329463282,1718380254437,-3658.48,0.00024109,3]
[329463283,1718380254494,-500.0,0.00024109,3]
[329463284,1718380254519,-2644.98,0.00024109,3]
[329463285,1718380254533,-537.11013653,0.00024109,3]
[329463286,1718380254548,-1802.53,0.00024109,3]
[329463287,1718380254564,-500.0,0.00024109,3]
[329463288,1718380254575,-602.99,0.00024109,3]
[329463289,1718380254587,-2145.2,0.00024109,3]
[329463290,1718380254629,-1702.89,0.00024109,3]
[329463291,1718380254643,-500.0,0.00024109,3]
[329463292,1718380254657,-500.0,0.00024109,3]
[329463293,1718380254670,-569.62420242,0.00024109,3]
[329463294,1718380254686,-500.0,0.00024109,3]
[329463295,1718380254708,-500.0,0.00024109,3]
[329463296,1718380254732,-500.0,0.00024109,3]
[329463297,1718380254751,-500.0,0.00024109,3]
[329463298,1718380254783,-1908.06,0.00024109,3]
[329463299,1718380254798,-500.0,0.00024109,3]
[329463300,1718380254812,-500.0,0.00024109,3]
[329463301,1718380254825,-1018.63,0.00024109,3]
[329463302,1718380254898,-500.0,0.00024109,3]
[329463303,1718380254930,-1213.2,0.00024109,3]
[329463304,1718380254952,-1388.92,0.00024109,3]
[329463305,1718380254968,-4761.04,0.00024109,3]
[329463306,1718380254996,-594.14,0.00024109,3]
[329463307,1718380255009,-500.0,0.00024109,3]
[329463308,1718380255031,-1420.1,0.00024109,3]
[329463309,1718380255048,-563.20035354,0.00024109,3]
[329463310,1718380255102,-683.07,0.00024109,3]
[329463311,1718380255118,-1325.92,0.00024109,3]
[329463312,1718380255130,-500.0,0.00024109,3]
[329463313,1718380255145,-4066.23,0.00024109,3]
[329463314,1718380255167,-500.0,0.00024109,3]
[329463315,1718380255194,-2560.28,0.00024109,3]
[329463316,1718380255210,-500.0,0.00024109,3]
[329463317,1718380255223,-500.0,0.00024109,3]
[329463318,1718380255239,-500.0,0.00024109,3]
[329463319,1718380255250,-500.0,0.00024109,3]
[329463320,1718380255267,-905.72,0.00024109,3]
[329463321,1718380255278,-500.0,0.00024109,3]
[329463322,1718380255302,-615.99,0.00024109,3]
[329463323,1718380255322,-500.0,0.00024109,3]
[329463324,1718380255336,-1031.06,0.00024109,3]
[329463325,1718380255352,-1016.43,0.00024109,3]
[329463326,1718380255363,-500.0,0.00024109,3]
[329463327,1718380255375,-500.0,0.00024109,3]
[329463328,1718380255404,-500.0,0.00024109,3]
[329463329,1718380255419,-500.0,0.00024109,3]
[329463330,1718380255432,-500.0,0.00024109,3]
[329463331,1718380255472,-1505.62,0.00024109,3]
[329463332,1718380255500,-1758.61,0.00024109,3]
[329463333,1718380255513,-500.0,0.00024109,3]
[329463334,1718380255526,-814.85,0.00024109,3]
[329463335,1718380255542,-2611.24,0.00024109,3]
[329463336,1718380255578,-500.0,0.00024109,3]
[329463337,1718380255614,-521.45037713,0.00024109,3]
[329463338,1718380255626,-506.68,0.00024109,3]
[329463339,1718380255638,-500.0,0.00024109,3]
[329463340,1718380255650,-4811.37,0.00024109,3]
[329463341,1718380255688,-3186.46,0.00024109,3]
[329463342,1718380255706,-511.79108944,0.00024109,3]
[329463343,1718380255721,-500.0,0.00024109,3]
[329463344,1718380255736,-500.0,0.00024109,3]
[329463345,1718380255751,-500.0,0.00024109,3]
[329463346,1718380255772,-2179.63,0.00024109,3]
[329463347,1718380255814,-1401.33,0.00024109,3]
[329463348,1718380255831,-500.0,0.00024109,3]
[329463349,1718380255859,-770.24,0.00024109,3]
[329463350,1718380255880,-1543.0,0.00024109,3]
[329463351,1718380255910,-1249.59,0.00024109,3]
[329463352,1718380255933,-500.0,0.00024109,3]
[329463353,1718380255953,-500.0,0.00024109,3]
[329463354,1718380255982,-563.5995345,0.00024109,3]
[329463355,1718380256011,-500.0,0.00024109,3]
[329463356,1718380256030,-2055.64,0.00024109,3]
[329463357,1718380256045,-563.44,0.00024109,3]
[329463358,1718380256072,-500.0,0.00024109,3]
[329463359,1718380256096,-597.13,0.00024109,3]
[329463360,1718380256108,-500.0,0.00024109,3]
[329463361,1718380256120,-948.19,0.00024109,3]
[329463362,1718380256135,-500.0,0.00024109,3]
[329463363,1718380256150,-500.0,0.00024109,3]
[329463364,1718380256164,-500.0,0.00024109,3]
[329463365,1718380256177,-878.8,0.00024109,3]
[329463366,1718380256189,-1297.72,0.00024109,3]
[329463367,1718380256201,-636.35,0.00024109,3]
[329463368,1718380256217,-358.37860015,0.00024109,3]
[329463369,1718380256236,-539.75716935,0.00024109,3]
[329463370,1718380256250,-2613.19,0.00024109,3]
[329463371,1718380256265,-1008.91,0.00024109,3]
[329463372,1718380256293,-500.0,0.00024109,3]
[329463373,1718380256309,-962.82,0.00024109,3]
[329463374,1718380256328,-500.0,0.00024109,3]
[329463375,1718380256342,-1619.43,0.00024109,3]
[329463376,1718380256369,-889.08,0.00024109,3]
[329463377,1718380256417,-769.0,0.00024109,3]
[329463378,1718380256436,-500.0,0.00024109,3]
[329463379,1718380256468,-500.0,0.00024109,3]
[329463380,1718380256481,-500.0,0.00024109,3]
[329463381,1718380256493,-500.0,0.00024109,3]
[329463382,1718380256507,-500.0,0.00024109,3]
[329463383,1718380256520,-1157.53,0.00024109,3]
[329463384,1718380256549,-500.0,0.00024109,3]
[329463385,1718380256582,-509.82358081,0.00024109,3]
[329463386,1718380256594,-1305.26,0.00024109,3]
[329463387,1718380256610,-500.0,0.00024109,3]
[329463388,1718380256621,-500.0,0.00024109,3]
[329463389,1718380256648,-500.0,0.00024109,3]
[329463390,1718380256670,-916.23,0.00024109,3]
[329463391,1718380256683,-523.72888837,0.00024109,3]
[329463392,1718380256706,-500.0,0.00024109,3]
[329463393,1718380256722,-500.0,0.00024109,3]
[329463394,1718380256739,-3926.57,0.00024109,3]
[329463395,1718380256758,-299.03274168,0.00024109,2]
[329463396,1718380256770,-24638.41073985,0.00024109,2]
[329463397,1718380256787,-469.57278941,0.00024109,2]
[329463398,1718380256802,-3632.206,0.00024119,2]
[329463399,1718380256819,-3740.867,0.00024119,2]
[329463400,1718380256831,-166.66666667,0.00024172,2]
[329463401,1718380256844,-250.52789834,0.00024184,2]
[329463402,1718380256856,-150.0,0.00024188,2]
[329463403,1718380256875,-159.60705426,0.00024191,2]
[329463404,1718380256889,-173.4,0.00024195,2]
[329463405,1718380256901,-23100.175,0.00024195,2]
[329463406,1718380256914,-4179.0,0.00024195,2]
[329463407,1718380256937,-150.0,0.00024195,2]
[329463408,1718380256957,-1000.0,0.000242,2]
[329463409,1718380256971,-275.5,0.000242,2]
[329463410,1718380256984,-150.0,0.00024204,2]
[329463411,1718380257006,-152.27587514,0.00024206,2]
[329463412,1718380257026,-156.56405321,0.00024213,2]
[329463413,1718380257039,-150.0,0.00024218,2]
[329463414,1718380257099,-209328.23996278,0.0002422,2]
[329463415,1718380258631,-860.61,0.00024109,3]
[329463416,1718380258643,-1726.41208,0.00024109,3]
[329463417,1718380258660,-4016.84792,0.00024109,3]
[329463418,1718380258674,-268762.59556264,0.0002422,2]
[329463419,1718380258695,-280.28086461,0.0002422,2]
[329463420,1718380258713,-530.44,0.0002422,2]
[329463434,1718380261971,-453.0,0.00024109,3]
[329463438,1718380264721,-970.13169171,0.00024009,2]
[329463439,1718380264741,-365.27706155,0.00024009,2]
[329463440,1718380264765,-3323.00748072,0.00024009,2]
[329463441,1718380264793,-1333.46213,0.00024009,2]
[329463442,1718380264821,-1508.12163602,0.00024009,2]
[329463443,1718380264835,-47.0,0.00024109,3]
[329463444,1718380264845,-500.0,0.00024109,3]
[329463445,1718380264857,-248.63106483,0.00024109,3]
[329463446,1718380264882,-251.36893517,0.00024109,3]
[329463447,1718380264896,-810.88,0.00024109,3]
[329463448,1718380264910,-500.0,0.00024109,3]
[329463449,1718380264924,-3661.091,0.00024119,2]
[329463450,1718380264969,-150.361,0.00024195,2]
[329463451,1718380264982,-55722.29342982,0.0002422,2]
[329463452,1718380264996,-269.06781082,0.0002422,2]
[329463453,1718380265038,-140000.005,0.0002422,2]
[329463454,1718380265075,-378.25350976,0.0002422,2]
[329463455,1718380265097,-1380.30322781,0.0002422,2]
[329463456,1718380265124,-20981.80024993,0.0002422,2]
[329463457,1718380265138,-634.54007381,0.0002422,2]
[329463458,1718380265742,-258.31960914,0.00024108,2]
[329463459,1718380265762,-90.68281664,0.00024109,3]
[329463460,1718380265775,-1321.23718336,0.00024109,3]
[329463461,1718380265814,-500.0,0.00024109,3]
[329463462,1718380265842,-500.0,0.00024109,3]
[329463463,1718380265868,-3074.05154964,0.0002422,2]
[329463464,1718380265887,-183263.59189043,0.0002422,2]
[329463465,1718380265904,-4665.94653909,0.0002422,2]
[329463466,1718380269127,-3931.02319847,0.00024108,2]
[329463467,1718380269180,-216.83208695,0.00024109,3]
[329463468,1718380269206,-500.0,0.00024109,3]
[329463469,1718380269237,-934.34,0.00024109,3]
[329463470,1718380269267,-500.0,0.00024109,3]
[329463471,1718380269283,-150.347,0.00024195,2]
[329463472,1718380269295,-6675.05895236,0.0002422,2]
[329463473,1718380269317,-3319.84641061,0.0002422,2]
[329463474,1718380269336,-42069.396,0.0002422,2]
[329463475,1718380269353,-12181.81072479,0.0002422,2]
[329463476,1718380269969,-4686.89984761,0.00021925,2]
[329463477,1718380269981,-18914.35208358,0.0002422,2]
[329463478,1718380269997,-503.4787228,0.0002422,2]
[329463479,1718380270030,-4140.9984756,0.0002422,2]
[329463480,1718380270061,-4019.09127962,0.0002422,2]
[329463481,1718380270113,-315.6,0.0002422,2]
[329463482,1718380271335,-158605.58252618,0.0002422,2]
[329463483,1718380271352,-878.87768602,0.0002422,4]
[329463484,1718380271383,-300.98161347,0.0002422,2]
[329463485,1718380271408,-447.40192806,0.0002422,2]
[329463486,1718380271422,-250.52789834,0.00024223,2]
[329463487,1718380271436,-150.0,0.00024228,2]
[329463488,1718380271452,-150.0,0.0002423,2]
[329463489,1718380271469,-180.0,0.0002423,2]
[329463490,1718380271500,-500.0,0.00024246,2]
[329463491,1718380271525,-290.01951672,0.00024263,2]
[329463492,1718380271538,-225.12405125,0.00024267,2]
[329463493,1718380271565,-500.0,0.00024279,3]
[329463494,1718380271596,-930.8608,0.0002428,2]
[329463495,1718380271612,-9016.1602,0.0002428,2]
[329463496,1718380271633,-39360.8957,0.0002428,2]
[329463497,1718380271653,-100000.0,0.0002428,2]
[329463498,1718380271680,-500.0,0.00024281,2]
[329463499,1718380271706,-150.0,0.00024287,2]
[329463500,1718380271732,-305.37776898,0.00024291,2]
[329463501,1718380271746,-150.0,0.000243,2]
[329463502,1718380271772,-1000.0,0.000243,2]
[329463503,1718380271806,-150.0,0.00024301,2]
[329463504,1718380271850,-245.85,0.00024329,30]
[329463505,1718380271884,-392.14184284,0.00024329,2]
[329463506,1718380271902,-150.0,0.00024335,2]
[329463507,1718380271928,-155.50737571,0.00024343,2]
[329463508,1718380271966,-175.55319433,0.00024351,2]
[329463509,1718380271993,-290.01951672,0.00024355,2]
[329463510,1718380272028,-250.52789834,0.00024358,2]
[329463511,1718380272081,-4610.3336856,0.00024358,2]
[329463512,1718380272108,-153.51380811,0.00024373,2]
[329463513,1718380272125,-411.24369396,0.00024378,2]
[329463514,1718380272142,-155.0,0.00024378,2]
[329463515,1718380272171,-671.69598943,0.00024378,2]
[329463516,1718380272186,-155.0,0.00024378,2]
[329463517,1718380272227,-155.21060246,0.00024379,2]
[329463518,1718380272256,-155.0,0.00024379,2]
[329463519,1718380272269,-180.77044057,0.00024379,2]
[329463520,1718380272296,-321.83343734,0.00024379,2]
[329463521,1718380272313,-537.0,0.0002438,2]
[329463522,1718380272343,-4185.21200345,0.0002438,2]
[329463523,1718380272368,-342.49142395,0.0002438,2]
[329463524,1718380272382,-204.30812187,0.0002438,2]
[329463525,1718380272401,-160.54086438,0.0002438,2]
[329463526,1718380272417,-157.38766626,0.0002438,2]
[329463527,1718380272430,-160.30079712,0.0002438,2]
[329463528,1718380272441,-572.89771205,0.0002438,2]
[329463529,1718380272474,-2292.14061527,0.0002438,2]
[329463530,1718380272494,-214.18176366,0.0002438,2]
[329463531,1718380272533,-2070.43223714,0.0002438,2]
[329463532,1718380272546,-6779.64788753,0.0002438,2]
[329463533,1718380272598,-2296.42093114,0.0002438,2]